bitfinex/quotes_SOLUSD_20220311
["timestamp","ask_amount","ask_price","bid_price","bid_amount"]
[1647019821670,18.5692,80.82,80.761,24.6949]
[1647019821872,6.188,80.819,80.761,24.6949]
[1647019822275,24.1462,80.825,80.79,18.5626]
[1647019822672,24.1462,80.825,80.761,43.6451]
[1647019823071,53.1712136,80.824,80.761,43.6451]
[1647019824072,53.1712136,80.824,80.78,18.5661]
[1647019824273,53.1712136,80.824,80.781,31.38954813]
[1647019824776,24.1462,80.825,80.781,31.38954813]
[1647019824975,24.8793,80.834,80.781,31.38954813]
[1647019825174,24.8793,80.834,80.81,18.5599]
[1647019825373,6.187,80.844,80.81,18.5599]
[1647019825574,1.68258617,80.852,80.81,18.5599]
[1647019825777,64.22228039,80.85,80.811,59.17202726]
[1647019826175,25.98719027,80.849,80.811,59.17202726]
[1647019826575,25.98719027,80.849,80.8,18.5617]
[1647019826977,64.22228039,80.85,80.8,18.5617]
[1647019827178,64.22228039,80.85,80.794,18.8078]
[1647019827379,25.98470101,80.849,80.794,18.8078]
[1647019827779,25.98470101,80.849,80.795,47.06961333]
[1647019828181,64.22228039,80.85,80.81,18.5594]
[1647019828580,64.22228039,80.85,80.795,47.06961333]
[1647019828779,6.186,80.853,80.795,47.06961333]
[1647019829181,6.186,80.853,80.81,18.5593]
[1647019829983,63.55841806,80.852,80.81,18.5593]
[1647019830484,63.55841806,80.852,80.8,18.5612]
[1647019830685,63.55841806,80.852,80.795,47.06961333]
[1647019831388,123.6,80.851,80.782,23.4478]
[1647019831585,24.7483,80.85,80.782,23.4478]
[1647019832387,18.5623,80.85,80.783,64.49809621]
[1647019834693,63.55841806,80.852,80.784,3.04447957]
[1647019835692,63.55841806,80.852,80.811,26.06347918]
[1647019837394,63.55841806,80.852,80.784,3.04447957]
[1647019837796,18.5613,80.85,80.784,3.04447957]
[1647019838392,18.5613,80.85,80.79,18.562]
[1647019838593,63.55841806,80.852,80.785,65.08013662]
[1647019838995,63.55841806,80.852,80.786,3.04447957]
[1647019840096,63.55841806,80.852,80.81,18.5587]
[1647019840293,63.55841806,80.852,80.811,25.48143877]
[1647019842496,63.55841806,80.852,80.82,18.5574]
[1647019844196,63.55841806,80.852,80.811,25.48143877]
[1647019844396,18.5607,80.85,80.811,25.48143877]
[1647019844696,18.5607,80.85,80.801,24.6435]
[1647019845697,63.55841806,80.852,80.802,57.50216141]
[1647019846500,63.55841806,80.852,80.81,18.5594]
[1647019849104,23.0098,80.854,80.81,18.5594]
[1647019850001,63.45079707,80.853,80.81,18.5594]
[1647019853406,6.184,80.876,80.81,18.5594]
[1647019853608,23.3637,80.865,80.81,18.5594]
[1647019854806,50.79575648,80.866,80.81,18.5594]
[1647019855009,1.68258617,80.878,80.81,18.5594]
[1647019855010,1.68258617,80.882,80.81,18.5594]
[1647019855208,1.68258617,80.882,80.83,18.5515]
[1647019855407,1.68258617,80.887,80.83,18.5515]
[1647019855606,25.04628617,80.888,80.83,18.5515]
[1647019855807,23.3637,80.888,80.83,18.5515]
[1647019856007,48.10303522,80.887,80.831,57.39801398]
[1647019856910,48.10303522,80.887,80.84,18.5522]
[1647019858811,48.10303522,80.887,80.84,18.52132103]
[1647019861317,6.183,80.886,80.831,57.39801398]
[1647019861514,6.183,80.886,80.811,3.04447957]
[1647019861515,123.6,80.885,80.811,3.04447957]
[1647019861818,123.6,80.883,80.812,23.5936]
[1647019862038,123.6,80.881,80.812,23.5936]
[1647019862243,123.6,80.869,80.802,18.3216]
[1647019862442,29.6171,80.868,80.802,18.3216]
[1647019862641,29.6171,80.868,80.803,58.08250094]
[1647019863242,18.558,80.86,80.81,18.5597]
[1647019863439,19.75538937,80.859,80.81,18.5597]
[1647019863639,43.18848937,80.859,80.81,18.5597]
[1647019864446,43.18848937,80.859,80.804,23.5936]
[1647019864640,6.184,80.858,80.804,23.5936]
[1647019865444,6.184,80.858,80.81,18.56]
[1647019865643,43.18848937,80.859,80.81,18.56]
[1647019869047,43.18848937,80.859,80.804,23.5936]
[1647019869846,18.5603,80.85,80.804,23.5936]
[1647019870049,18.5603,80.85,80.81,18.5596]
[1647019870247,43.18848937,80.859,80.81,18.5596]
[1647019870450,43.18848937,80.859,80.804,23.5936]
[1647019870746,43.18848937,80.859,80.803,58.08250094]
[1647019870747,18.5606,80.85,80.803,58.08250094]
[1647019870947,24.5109,80.849,80.803,58.08250094]
[1647019874954,24.5109,80.849,80.81,18.56]
[1647019875953,6.184,80.848,80.81,18.56]
[1647019876157,24.5109,80.849,80.81,18.56]
[1647019877156,24.5109,80.849,80.803,58.08250094]
[1647019879256,30.6969,80.849,80.803,58.08250094]
[1647019881060,18.5631,80.84,80.79,18.5639]
[1647019881361,18.5631,80.84,80.789,23.9276]
[1647019881362,123.6,80.839,80.771,22.9069]
[1647019881557,148.513,80.839,80.771,22.9069]
[1647019881759,123.6,80.837,80.764,23.8004]
[1647019881959,123.6,80.835,80.765,47.26817666]
[1647019882158,123.6,80.833,80.765,47.26817666]
[1647019882458,18.5659,80.83,80.765,47.26817666]
[1647019882661,31.101,80.829,80.765,47.26817666]
[1647019883262,197.76,80.826,80.747,18.2963]
[1647019883458,31.101,80.829,80.69,136.63771996]
[1647019883459,197.76,80.824,80.74,18.261]
[1647019883660,197.76,80.822,80.741,23.8004]
[1647019883862,24.913,80.829,80.741,23.8004]
[1647019883863,197.76,80.82,80.741,23.8004]
[1647019884064,216.3294,80.82,80.75,18.5723]
[1647019884265,123.6,80.818,80.751,62.57041444]
[1647019884466,123.6,80.816,80.751,62.57041444]
[1647019885063,123.6,80.814,80.751,62.57041444]
[1647019885465,129.789,80.813,80.751,62.57041444]
[1647019894076,18.5735,80.8,80.751,62.57041444]
[1647019894276,23.1184,80.799,80.751,62.57041444]
[1647019895678,6.19,80.798,80.751,62.57041444]
[1647019895896,23.1184,80.799,80.751,62.57041444]
[1647019895897,23.1184,80.799,80.76,18.5714]
[1647019897897,23.1184,80.799,80.752,22.6886]
[1647019899100,23.1184,80.799,80.76,18.5712]
[1647019900498,57.04993125,80.798,80.76,18.5712]
[1647019901202,23.1184,80.799,80.76,18.5712]
[1647019903505,6.189,80.819,80.76,18.5712]
[1647019903705,47.51337683,80.824,80.761,24.1416]
[1647019903904,30.9244,80.829,80.761,24.1416]
[1647019904105,24.9035,80.838,80.762,123.6]
[1647019904404,24.9035,80.838,80.762,152.71795927]
[1647019904604,24.9035,80.838,80.764,123.6]
[1647019904804,24.9035,80.838,80.81,18.5599]
[1647019905006,24.9035,80.838,80.811,27.99116095]
[1647019905405,6.186,80.837,80.811,27.99116095]
[1647019905612,6.186,80.857,80.811,27.99116095]
[1647019906006,18.5609,80.85,80.811,27.99116095]
[1647019906406,6.184,80.849,80.811,27.99116095]
[1647019906805,6.184,80.857,80.811,27.99116095]
[1647019907806,59.65516195,80.858,80.811,27.99116095]
[1647019908206,18.5627,80.84,80.811,27.99116095]
[1647019909006,18.5627,80.84,80.8,18.5614]
[1647019910005,18.5627,80.84,80.795,60.67869782]
[1647019910809,123.6,80.839,80.781,23.969]
[1647019911016,24.1827,80.84,80.765,22.7054]
[1647019911017,123.6,80.829,80.765,22.7054]
[1647019911214,153.3249,80.829,80.765,22.7054]
[1647019911414,123.6,80.825,80.76,18.5703]
[1647019911616,129.788,80.825,80.76,18.5703]
[1647019911816,123.6,80.823,80.761,64.16305954]
[1647019912015,197.76,80.819,80.76,18.5703]
[1647019912220,197.76,80.817,80.76,18.5703]
[1647019912417,123.6,80.815,80.76,18.5703]
[1647019912617,129.789,80.814,80.76,18.5703]
[1647019912819,6.189,80.815,80.76,18.5703]
[1647019913018,6.189,80.815,80.761,48.16980059]
[1647019913822,6.189,80.818,80.761,48.16980059]
[1647019916826,23.407,80.819,80.761,48.16980059]
[1647019917026,23.407,80.819,80.78,18.5652]
[1647019917228,23.407,80.819,80.761,73.10620059]
[1647019918030,6.188,80.818,80.78,18.5662]
[1647019919335,29.595,80.819,80.78,18.5662]
[1647019920831,23.407,80.819,80.78,18.5662]
[1647019921131,23.407,80.819,80.761,73.10620059]
[1647019921331,6.188,80.818,80.761,73.10620059]
[1647019921737,23.407,80.819,80.761,73.10620059]
[1647019922561,6.188,80.818,80.761,73.10620059]
[1647019923158,23.407,80.819,80.761,73.10620059]
[1647019925566,23.407,80.819,80.77,18.569]
[1647019926164,23.407,80.819,80.761,73.10620059]
[1647019926565,23.407,80.819,80.78,18.5651]
[1647019931170,23.407,80.819,80.774,18.7648]
[1647019933072,23.407,80.819,80.78,18.5665]
[1647019936678,23.407,80.819,80.774,18.7648]
[1647019936880,29.595,80.819,80.774,18.7648]
[1647019937083,29.595,80.819,80.761,73.10620059]
[1647019939979,29.595,80.819,80.761,24.9364]
[1647019940182,29.595,80.819,80.74,18.5753]
[1647019940183,197.76,80.816,80.74,18.5753]
[1647019940385,123.6,80.814,80.741,47.9622]
[1647019940582,14.42,80.81,80.741,47.9622]
[1647019940807,18.576,80.79,80.741,47.9622]
[1647019940987,58.99517118,80.789,80.741,47.9622]
[1647019941184,6.19,80.788,80.741,47.9622]
[1647019941985,18.578,80.78,80.741,47.9622]
[1647019942384,18.578,80.78,80.735,47.13349863]
[1647019942589,18.578,80.78,80.73,18.5779]
[1647019943394,18.578,80.78,80.717,24.0623]
[1647019943595,18.578,80.78,80.721,51.19341075]
[1647019944794,18.5803,80.77,80.721,51.19341075]
[1647019945796,18.5803,80.77,80.72,18.5799]
[1647019947398,22.8463,80.769,80.72,18.5799]
[1647019948002,123.6,80.759,80.707,3.04447957]
[1647019948200,123.6,80.757,80.694,3.04447957]
[1647019948427,123.6,80.755,80.684,3.04447957]
[1647019948623,123.6,80.753,80.685,49.89298053]
[1647019948828,6.194,80.752,80.685,49.89298053]
[1647019949023,18.5881,80.75,80.69,18.5877]
[1647019949225,6.194,80.749,80.69,18.5877]
[1647019949423,6.194,80.753,80.69,18.5877]
[1647019949623,8.86325341,80.754,80.691,26.0734797]
[1647019950625,8.86325341,80.754,80.7,18.5824]
[1647019951026,8.86325341,80.754,80.701,26.0734797]
[1647019951629,8.86325341,80.754,80.71,18.5813]
[1647019951828,8.86325341,80.754,80.711,40.66859486]
[1647019952625,8.86325341,80.754,80.72,18.5804]
[1647019952827,29.0383,80.758,80.711,40.66859486]
[1647019953627,22.8463,80.758,80.711,40.66859486]
[1647019953829,58.52384353,80.757,80.711,40.66859486]
[1647019954828,22.8463,80.758,80.72,18.5806]
[1647019955629,18.58,80.77,80.72,18.5806]
[1647019955832,24.7734,80.769,80.72,18.5806]
[1647019957232,6.192,80.786,80.72,18.5806]
[1647019957432,3.36517235,80.844,80.72,18.5806]
[1647019957433,123.6,80.814,80.721,26.82247957]
[1647019957633,18.5727,80.8,80.74,18.5727]
[1647019957831,30.5778,80.799,80.74,18.5727]
[1647019958032,57.88881009,80.784,80.741,49.89298053]
[1647019959133,57.88881009,80.784,80.75,18.5735]
[1647019961038,57.88881009,80.784,80.742,18.9581]
[1647019961840,57.88881009,80.784,80.74,18.575]
[1647019962040,18.5781,80.78,80.731,23.778]
[1647019963439,6.191,80.779,80.731,23.778]
[1647019964042,6.191,80.782,80.731,23.778]
[1647019964441,23.2021,80.783,80.731,23.778]
[1647019965043,23.2021,80.783,80.74,18.5762]
[1647019967770,6.191,80.782,80.74,18.5762]
[1647019970976,23.2021,80.783,80.74,18.5762]
[1647019971175,6.191,80.797,80.74,18.5762]
[1647019971374,14.42,80.82,80.731,23.778]
[1647019971375,29.4533,80.81,80.77,18.5681]
[1647019971977,51.75730327,80.809,80.771,42.63684513]
[1647019972176,6.188,80.808,80.771,42.63684513]
[1647019972476,6.188,80.808,80.77,18.5681]
[1647019972679,6.188,80.808,80.76,18.5707]
[1647019973280,6.188,80.808,80.761,60.52777876]
[1647019975679,57.94630327,80.809,80.761,60.52777876]
[1647019976480,57.94630327,80.809,80.76,18.5707]
[1647019976683,18.5728,80.8,80.751,24.294]
[1647019977479,18.5728,80.8,80.752,57.65558812]
[1647019979081,18.5728,80.8,80.751,24.294]
[1647019979480,18.5728,80.8,80.75,18.573]
[1647019980981,6.19,80.799,80.75,18.573]
[1647019981783,18.5749,80.79,80.736,23.0103]
[1647019981982,6.19,80.789,80.736,23.0103]
[1647019982382,123.6,80.796,80.736,23.0103]
[1647019982584,123.6,80.794,80.736,23.0103]
[1647019982781,6.19,80.793,80.736,23.0103]
[1647019983292,16.10112132,80.779,80.736,23.0103]
[1647019983482,24.2633,80.778,80.736,23.0103]
[1647019987288,24.2633,80.778,80.74,18.576]
[1647019987488,1.68258617,80.807,80.74,18.576]
[1647019987688,29.2138,80.806,80.74,18.576]
[1647019988189,60.24435057,80.805,80.74,18.576]
[1647019988589,6.19,80.804,80.741,3.04447957]
[1647019988888,60.24435057,80.805,80.75,18.5701]
[1647019989691,60.24435057,80.805,80.751,26.32607957]
[1647019989892,60.24435057,80.805,80.76,18.5696]
[1647019990092,60.24435057,80.805,80.76,50.61644416]
[1647019991795,60.24435057,80.805,80.76,18.5696]
[1647019991992,123.6,80.804,80.729,3.04447957]
[1647019992193,123.6,80.799,80.729,3.04447957]
[1647019992395,18.5792,80.78,80.721,18.4554]
[1647019992592,18.5792,80.78,80.724,23.2816]
[1647019992794,7.61407402,80.779,80.724,86.81990208]
[1647019993194,7.61407402,80.779,80.73,18.5773]
[1647019993195,31.34917402,80.779,80.73,18.5773]
[1647019994394,7.61407402,80.779,80.731,29.11795927]
[1647019994599,7.61407402,80.779,80.74,18.5715]
[1647019995094,6.191,80.808,80.741,3.04447957]
[1647019995294,23.7351,80.809,80.75,61.8887]
[1647019995495,23.7351,80.809,80.751,22.8349]
[1647019995900,54.58407106,80.808,80.752,27.02327331]
[1647019996695,54.58407106,80.808,80.76,18.5666]
[1647019999397,6.189,80.807,80.76,18.5666]
[1647020003205,54.58407106,80.808,80.76,18.5666]
[1647020007316,6.189,80.829,80.76,18.5666]
[1647020007514,31.1701,80.839,80.8,18.5619]
[1647020007915,31.1701,80.839,80.762,123.6]
[1647020008219,47.1026124,80.838,80.774,26.0734797]
[1647020008432,47.1026124,80.838,80.775,22.6521]
[1647020008629,47.1026124,80.838,80.775,25.69657957]
[1647020008830,47.1026124,80.838,80.776,3.04447957]
[1647020009032,47.1026124,80.838,80.777,63.53830208]
[1647020009231,47.1026124,80.838,80.81,18.56]
[1647020009429,47.1026124,80.838,80.776,3.04447957]
[1647020009430,18.5657,80.83,80.776,3.04447957]
[1647020009930,6.187,80.837,80.776,3.04447957]
[1647020010130,24.9821,80.836,80.776,3.04447957]
[1647020010332,6.187,80.835,80.79,18.5633]
[1647020011734,6.187,80.835,80.8,18.5621]
[1647020011932,6.187,80.835,80.78,61.8736]
[1647020012135,6.187,80.835,80.777,49.68270222]
[1647020012733,6.187,80.835,80.79,18.5639]
[1647020013134,24.9821,80.836,80.79,18.5639]
[1647020014935,6.187,80.835,80.79,18.5639]
[1647020015135,18.5657,80.83,80.79,18.5639]
[1647020015736,6.187,80.835,80.79,18.5639]
[1647020017737,24.9821,80.836,80.79,18.5639]
[1647020018940,6.187,80.835,80.79,18.5639]
[1647020019539,18.5658,80.83,80.78,18.5662]
[1647020020141,18.5658,80.83,80.777,49.68270222]
[1647020020341,6.187,80.835,80.777,49.68270222]
[1647020020744,6.187,80.835,80.79,18.5647]
[1647020023044,18.5658,80.83,80.79,18.5647]
[1647020023246,18.5658,80.83,80.78,18.5663]
[1647020024146,18.5658,80.83,80.777,49.68270222]
[1647020024546,18.5658,80.83,80.78,18.5664]
[1647020025546,6.187,80.829,80.78,18.5664]
[1647020025847,6.187,80.829,80.79,18.5645]
[1647020026446,6.187,80.835,80.79,18.5645]
[1647020026647,6.187,80.835,80.777,49.68270222]
[1647020027249,18.5657,80.83,80.78,18.5657]
[1647020027446,18.5657,80.83,80.777,49.68270222]
[1647020028251,18.5657,80.83,80.78,18.5649]
[1647020029355,18.5657,80.83,80.79,18.5647]
[1647020029551,6.187,80.835,80.79,18.5647]
[1647020030255,24.9821,80.836,80.79,18.5647]
[1647020031057,24.9821,80.836,80.777,49.68270222]
[1647020031358,24.9821,80.836,80.8,18.5624]
[1647020031556,24.9821,80.836,80.78,61.8727]
[1647020032255,60.12251535,80.835,80.78,61.8727]
[1647020032656,60.12251535,80.835,80.79,18.5639]
[1647020035058,66.30951535,80.835,80.79,18.5639]
[1647020036059,66.30951535,80.835,80.8,18.5619]
[1647020036265,60.12251535,80.835,80.8,18.5619]
[1647020037460,60.12251535,80.835,80.79,18.564]
[1647020038373,60.12251535,80.835,80.778,3.04447957]
[1647020039168,60.12251535,80.835,80.8,18.5624]
[1647020041070,24.9821,80.836,80.81,18.5597]
[1647020042092,24.9821,80.836,80.811,40.87887317]
[1647020044794,24.9821,80.836,80.81,18.5597]
[1647020045793,24.9821,80.836,80.81,69.55639939]
[1647020045993,24.9821,80.836,80.781,3.04447957]
[1647020046993,24.9821,80.836,80.782,56.07887201]
[1647020047194,24.9821,80.836,80.79,18.5628]
[1647020049795,24.9821,80.836,80.8,18.562]
[1647020051100,24.9821,80.836,80.81,18.56]
[1647020051302,24.9821,80.836,80.791,23.7524]
[1647020052800,24.9821,80.836,80.79,18.5635]
[1647020054606,24.9821,80.836,80.8,18.5621]
[1647020058213,54.88399937,80.84,80.81,18.56]
[1647020058408,54.88399937,80.84,80.811,32.09373183]
[1647020059308,54.88399937,80.84,80.82,18.5578]
[1647020059509,54.88399937,80.84,80.811,32.09373183]
[1647020065628,54.88399937,80.84,80.81,18.5586]
[1647020065827,54.88399937,80.84,80.801,23.0513]
[1647020066029,23.8672,80.839,80.79,18.5638]
[1647020066428,23.8672,80.839,80.781,23.2184]
[1647020066630,23.8672,80.839,80.785,54.13247475]
[1647020067831,23.8672,80.839,80.79,61.8658]
[1647020068137,16.10258617,80.83,80.772,3.028e-05]
[1647020068341,1.68258617,80.808,80.687,24.3841]
[1647020068545,1.68258617,80.798,80.688,12.93084773]
[1647020068743,197.76,80.796,80.715,6.46533573]
[1647020068943,197.76,80.779,80.675,18.6075]
[1647020069145,123.6,80.769,80.704,49.36601056]
[1647020069343,1.01256579,80.767,80.704,49.36601056]
[1647020069744,14.42,80.76,80.704,49.36601056]
[1647020069944,18.5844,80.75,80.704,49.36601056]
[1647020070144,6.192,80.749,80.704,49.36601056]
[1647020070443,22.7344,80.768,80.704,49.36601056]
[1647020071143,22.7344,80.768,80.71,18.5813]
[1647020074650,6.193,80.777,80.71,18.5813]
[1647020075048,6.193,80.777,80.73,18.573]
[1647020075448,6.193,80.777,80.731,57.66670821]
[1647020076855,6.193,80.777,80.74,18.5746]
[1647020078157,18.5746,80.8,80.74,18.5746]
[1647020078360,6.192,80.806,80.74,18.5746]
[1647020078556,29.4045,80.807,80.74,18.5746]
[1647020078757,23.2145,80.807,80.74,18.5746]
[1647020081159,6.19,80.823,80.741,0.25]
[1647020081359,6.189,80.828,80.78,18.5657]
[1647020082159,6.189,80.828,80.781,57.91865762]
[1647020082760,6.189,80.828,80.79,18.5634]
[1647020082961,6.189,80.828,80.781,57.91865762]
[1647020083260,24.824,80.829,80.781,57.91865762]
[1647020084259,24.824,80.829,80.79,18.5634]
[1647020085661,24.824,80.829,80.781,57.91865762]
[1647020085862,6.187,80.828,80.774,18.4982]
[1647020086064,6.187,80.828,80.75,61.8878]
[1647020086963,6.187,80.828,80.751,48.12612289]
[1647020087162,18.5685,80.82,80.77,18.5676]
[1647020087364,6.188,80.819,80.771,65.36853143]
[1647020087563,1.58068934,80.818,80.75,61.8878]
[1647020087762,1.58068934,80.818,80.733,23.8007]
[1647020087763,6.189,80.817,80.733,23.8007]
[1647020088163,123.6,80.816,80.733,23.8007]
[1647020088363,123.6,80.814,80.733,23.8007]
[1647020088569,25.99488934,80.818,80.733,23.8007]
[1647020088570,129.789,80.813,80.74,59.33305957]
[1647020088766,18.5748,80.8,80.74,59.33305957]
[1647020088963,4.40213526,80.798,80.74,59.33305957]
[1647020089969,6.19,80.797,80.74,59.33305957]
[1647020090170,6.19,80.797,80.74,77.90765957]
[1647020091073,18.575,80.79,80.74,77.90765957]
[1647020091872,6.19,80.789,80.74,77.90765957]
[1647020093479,30.4606,80.789,80.74,77.90765957]
[1647020094704,24.2706,80.789,80.74,77.90765957]
[1647020097008,6.19,80.788,80.74,77.90765957]
[1647020100015,24.2706,80.789,80.74,77.90765957]
[1647020101218,6.19,80.788,80.74,77.90765957]
[1647020102623,6.19,80.788,80.74,18.5746]
[1647020103720,18.5769,80.78,80.699,23.1563]
[1647020103923,123.6,80.778,80.699,23.1563]
[1647020104124,197.76,80.776,80.686,12.93448739]
[1647020104320,55.4245,80.777,80.686,12.93448739]
[1647020104321,197.76,80.774,80.692,18.3523]
[1647020104519,14.42,80.76,80.684,24.0306]
[1647020104719,74.16,80.758,80.691,6.46821368]
[1647020104920,123.6,80.755,80.691,6.46821368]
[1647020105222,14.42,80.75,80.661,23.1563]
[1647020105420,55.4275,80.749,80.661,23.1563]
[1647020105620,4.40213526,80.748,80.68,61.9512]
[1647020106021,4.40213526,80.748,80.69,18.5878]
[1647020106221,4.40213526,80.748,80.691,63.77314526]
[1647020107224,4.40213526,80.748,80.7,18.585]
[1647020107421,4.40213526,80.748,80.691,63.77314526]
[1647020107621,10.59613526,80.748,80.691,63.77314526]
[1647020108224,18.586,80.74,80.691,63.77314526]
[1647020109031,6.194,80.739,80.691,63.77314526]
[1647020109229,29.0203,80.739,80.691,63.77314526]
[1647020110030,29.0203,80.739,80.69,18.5865]
[1647020110231,18.5882,80.73,80.676,23.1563]
[1647020110430,24.0926,80.729,80.676,23.1563]
[1647020111031,1.58068934,80.728,80.676,23.1563]
[1647020111233,18.5915,80.72,80.676,23.1563]
[1647020111634,18.5915,80.72,80.68,18.5901]
[1647020112034,18.5915,80.72,80.677,5.36010212]
[1647020112235,123.6,80.719,80.677,5.36010212]
[1647020112435,18.5978,80.71,80.677,5.36010212]
[1647020112836,33.0178,80.71,80.677,5.36010212]
[1647020113038,4.35896041,80.709,80.677,5.36010212]
[1647020113653,18.5961,80.7,80.677,5.36010212]
[1647020114260,14.42,80.72,80.677,5.36010212]
[1647020114456,0.92,80.819,80.677,5.36010212]
[1647020114457,14.42,80.74,80.677,5.36010212]
[1647020114655,23.5818,80.748,80.678,3.04447957]
[1647020115155,23.5818,80.748,80.68,18.59]
[1647020115355,6.194,80.769,80.682,123.6]
[1647020115560,23.5818,80.768,80.682,123.6]
[1647020115757,23.5818,80.768,80.684,123.6]
[1647020115956,23.5818,80.768,80.7,18.5803]
[1647020116158,6.192,80.794,80.701,123.6]
[1647020116358,6.192,80.805,80.703,123.6]
[1647020116558,6.192,80.805,80.704,0.25]
[1647020116764,6.191,80.808,80.704,15.84490433]
[1647020116957,45.9154,80.809,80.705,126.64447957]
[1647020117158,45.9154,80.809,80.721,48.29122681]
[1647020117358,45.9154,80.809,80.722,123.85]
[1647020117559,45.9154,80.809,80.722,126.89447957]
[1647020117759,6.19,80.808,80.722,144.80500645]
[1647020117959,6.19,80.823,80.724,123.6]
[1647020118158,18.5671,80.83,80.725,0.25]
[1647020118358,5.60730883,80.829,80.726,123.6]
[1647020118559,5.60730883,80.829,80.727,0.25]
[1647020118859,6.19,80.839,80.727,15.84490433]
[1647020119066,6.189,80.823,80.728,123.6]
[1647020119263,14.42,80.85,80.729,0.25]
[1647020119458,6.188,80.849,80.741,128.81714714]
[1647020119658,6.188,80.857,80.742,0.25]
[1647020119860,14.42,80.86,80.743,123.6]
[1647020119861,5.07667723,80.858,80.743,123.6]
[1647020120059,6.188,80.857,80.8,18.5603]
[1647020120358,6.188,80.857,80.772,4.73396261]
[1647020120658,6.187,80.859,80.791,3.04447957]
[1647020121259,6.187,80.859,80.792,59.64206183]
[1647020121260,4.38828097,80.858,80.792,59.64206183]
[1647020121460,4.38828097,80.858,80.81,18.5582]
[1647020121665,4.38828097,80.858,80.811,62.56418455]
[1647020121966,4.38828097,80.858,80.79,61.8584]
[1647020122266,123.6,80.855,80.785,18.7703]
[1647020122466,18.5624,80.85,80.785,18.7703]
[1647020122663,32.9824,80.85,80.771,5.36010212]
[1647020123162,14.42,80.85,80.772,65.05300544]
[1647020123362,6.187,80.849,80.772,65.05300544]
[1647020123567,123.6,80.848,80.772,65.05300544]
[1647020123765,1.59454363,80.845,80.773,5.36010212]
[1647020123965,123.6,80.839,80.773,5.36010212]
[1647020124165,123.6,80.837,80.773,5.36010212]
[1647020124365,123.6,80.835,80.773,5.36010212]
[1647020124567,4.38828097,80.832,80.773,5.36010212]
[1647020124965,6.187,80.831,80.773,5.36010212]
[1647020125566,5.687,80.831,80.773,5.36010212]
[1647020125772,18.569,80.83,80.773,5.36010212]
[1647020125966,6.188,80.829,80.773,5.36010212]
[1647020126366,123.6,80.828,80.773,5.36010212]
[1647020126568,197.76,80.826,80.773,5.36010212]
[1647020126767,197.76,80.819,80.73,5.36010212]
[1647020126968,123.6,80.809,80.73,23.72040212]
[1647020127169,14.42,80.81,80.73,23.72040212]
[1647020127668,6.19,80.809,80.73,23.72040212]
[1647020127867,1.59454363,80.808,80.751,55.72623513]
[1647020128068,6.189,80.807,80.751,55.72623513]
[1647020128667,6.189,80.807,80.73,5.36010212]
[1647020128867,18.5736,80.8,80.73,5.36010212]
[1647020129067,123.6,80.806,80.73,5.36010212]
[1647020129068,6.19,80.799,80.73,5.36010212]
[1647020129268,14.42,80.79,80.73,5.36010212]
[1647020129470,6.191,80.789,80.73,5.36010212]
[1647020129667,4.38828097,80.788,80.731,64.23837123]
[1647020130066,4.38828097,80.788,80.726,5.36010212]
[1647020130267,6.191,80.787,80.726,5.36010212]
[1647020131066,6.191,80.787,80.727,57.99500507]
[1647020131267,6.191,80.787,80.73,18.5758]
[1647020132270,6.191,80.787,80.727,57.99500507]
[1647020133071,18.5784,80.78,80.727,57.99500507]
[1647020133270,4.38828097,80.788,80.728,5.36010212]
[1647020135075,18.5783,80.78,80.728,5.36010212]
[1647020135474,123.6,80.779,80.728,5.36010212]
[1647020135777,123.6,80.777,80.728,5.36010212]